Cogmind - Beta 15 @@@ ROGUE MODE // 2025.07.19 @ 01:31:36 Player: Woad Result: Self-destructed Performance ------------- Evolutions (2) 1000 Regions Visited (3) 600 Robots Destroyed (40) 200 Value Destroyed (937) 937 Prototype IDs (0) 0 Alien Tech Used (0) 0 Bonus (0) 0 TOTAL SCORE: 2737 Bonus ------- None Cogmind --------- Core Integrity 140/550 Matter 300/300 Energy 160/160 System Corruption 4% Temperature Cool (0) Movement Treading (160) Location -8/Materials Parts ------- > --- POWER (1) -------- Light Nuclear Core > --- PROPULSION (4) --- Light Treads > --- UTILITY (3) ------ Heat Sink Improved Heat Sink Weight Redist. System > --- WEAPON (3) ------- Ion Cannon Improved Light Cannon Improved Light Cannon > --- INVENTORY (5) ---- Advanced Weight Redist. System Signal Interpreter Improved Light Armor Plating Improved Light Cannon Scythe Peak State ------------ > --- POWER ------------ Light Nuclear Core > --- PROPULSION ------- Light Treads > --- UTILITY ---------- Heat Sink Improved Heat Sink Weight Redist. System > --- WEAPON ----------- Ion Cannon Improved Light Cannon Improved Light Cannon > --- INVENTORY -------- Advanced Weight Redist. System Signal Interpreter Hardened Light Armor Plating Improved Light Cannon Scythe [Rating: 18] Favorites ----------- Power Light Nuclear Core Engine Ion Engine Power Core Light Nuclear Core Propulsion Hover Unit Treads Light Treads Leg VSS Leg Wheel Compact Wheel Hover Unit Hover Unit Utility Seismic Detector Device Seismic Detector Storage Small Storage Unit Hackware Hacking Suite Protection Hardened Light Armor Plating Weapon Light Cannon Energy Gun Medium Laser Energy Cannon Ion Cannon Ballistic Gun Assault Rifle Ballistic Cannon Light Cannon Launcher Grenade Launcher Special Weapon Mining Laser Slashing Weapon Scythe Build | -11 -10 -9 -8 ------- Run | Yrd Mat Mat Mat Slots Evolved 4 | . . 2 2 Power . | . . . . Propulsion 2 | . . 1 1 Utility 1 | . . 1 . Weapon 1 | . . . 1 Parts Attached 41 | 7 4 11 19 Power 5 | 1 1 . 3 Engine 3 | 1 . . 2 Core 2 | . 1 . 1 Reactor . | . . . . Propulsion 10 | 2 . 5 3 Treads 1 | . . . 1 Leg 1 | . . . 1 Wheel 3 | 2 . . 1 Hover 5 | . . 5 . Flight . | . . . . Utility 10 | 2 . 1 7 Device 6 | 1 . . 5 Storage 2 | 1 . . 1 Processor . | . . . . Hackware 1 | . . 1 . Protection 1 | . . . 1 Artifact . | . . . . Weapon 16 | 2 3 5 6 Energy Gun 2 | 1 . . 1 Energy Cannon 1 | . . . 1 Ballistic Gun 4 | 1 1 2 . Ballistic Cannon 5 | . 2 1 2 Launcher 2 | . . 1 1 Special Weapon 1 | . . 1 . Impact Weapon . | . . . . Slashing Weapon 1 | . . . 1 Piercing Weapon . | . . . . Special Melee Weapon . | . . . . Unidentified Prototypes . | . . . . Parts Lost 18 | . . 2 16 Power 2 | . . . 2 Propulsion 7 | . . 2 5 Utility 3 | . . . 3 Weapon 6 | . . . 6 Highest Loss Streak 12 | . . 1 12 To Critical Strikes . | . . . . Average Backups 6 | 3 7 7 4 Power . | . . . . Propulsion 1 | 1 3 1 . Utility 1 | . . 1 2 Weapon 2 | . 3 4 2 Tool/Special . | . . . . Unused Backups 19 | . 8 3 8 Power 3 | . 2 . 1 Propulsion 3 | . 3 . . Utility 10 | . 2 2 6 Weapon 3 | . 1 1 1 Tool/Special . | . . . . Average Slot Usage (%) 83 | . 99 97 56 Engine 2 | . 4 . 3 Core 7 | . 8 10 4 Wheel 11 | . 28 . 2 Hover 10 | . . 31 5 Device 13 | . 14 11 14 Storage 9 | . 14 11 2 Hackware 3 | . . 10 . Energy Cannon 1 | . . . 5 Ballistic Gun 5 | . 7 2 4 Ballistic Cannon 15 | . 18 18 9 Peak Build Rating 18 | 7 9 16 18 Average Rating 11 | 5 8 13 13 On Entrance 8 | . 7 9 16 Naked Turns 4 | . . . 4 Heaviest Build 25 | 15 17 17 25 Greatest Support 32 | 32 32 18 26 Greatest Overweight (x) 2 | 1 . 1 2 Average Overweight (x) . | . . . . Largest Inventory Capacity 10 | 8 8 8 10 Average Capacity 7 | 7 8 8 6 Most Carried 8 | 7 8 8 8 Average Carried 6 | 3 7 6 4 Final Capacity 8 | 8 8 8 5 Final Carried 8 | 7 8 8 5 Class Distribution -------------------- 74% | Mutant 9% | Scavenger-Gunner 9% | Scavenger-Mutant 6% | Gunner Dominant Class ---------------- Mutant | -10/Materials Mutant | -9/Materials Mutant | -8/Materials Resources | -11 -10 -9 -8 ----------- Run | Yrd Mat Mat Mat Matter Collected 1252 | 257 153 303 539 Remotely . | . . . . Salvage Created 1002 | 68 171 480 283 Parts 87 | 9 11 48 19 Haulers Intercepted 4 | . 1 2 1 Recyclers Shooed . | . . . . Parts Field Recycled . | . . . . Retrieved Matter . | . . . . Parts Self-Destructed . | . . . . Prevented . | . . . . Kills | -11 -10 -9 -8 ------- Run | Yrd Mat Mat Mat Combat Hostiles Destroyed 26 | . 3 18 5 Melee 1 | . . . 1 Guns 4 | . 3 1 . Cannons 18 | . . 14 4 AOE 3 | . . 3 . Classes Destroyed 10 | 1 2 5 2 Builder 2 | . . 1 1 Tunneler 3 | 3 . . . Hauler 4 | . 1 2 1 Operator 3 | . . 2 1 Watcher 2 | . . 2 . Swarmer 9 | . . 9 . Grunt 12 | . 3 7 2 Sentry 3 | . . 2 1 Hunter 1 | . . . 1 Heavy 1 | . . . 1 Best Kill Streak 7 | 2 2 7 2 Combat Bots Only 4 | . 2 4 2 Max Kills in Single Turn 3 | 1 1 3 1 Gunslinging . | . . . . Exploded 2 | . . 2 . Melee 1 | . . . 1 Uniques/NPCs Destroyed . | . . . . Combat | -11 -10 -9 -8 -------- Run | Yrd Mat Mat Mat Hostile Shots Fired 133 | . 23 39 71 Missed 29 | . 9 7 13 Hits 104 | . 14 32 58 Projectile 104 | . 14 32 58 Critical Strikes 7 | . . . 7 Damage Taken 1924 | . 171 362 1391 Core 511 | . 32 69 410 Absorbed by Shields . | . . . . Regen/Repaired (Parts) 53 | . 15 38 . Core Remaining (%) 89 | 100 87 82 . Volleys Fired 115 | 4 13 49 49 Largest 3 | 2 2 2 3 Hottest 126 | 70 40 100 126 Shots Fired 196 | 8 26 92 70 Gun 70 | 8 26 8 28 Cannon 115 | . . 76 39 Launcher 5 | . . 2 3 Special 6 | . . 6 . Kinetic 159 | 4 26 84 45 Thermal 32 | 4 . 6 22 Explosive 5 | . . 2 3 Electromagnetic . | . . . . Robot Hit Streak 13 | 3 3 7 13 Robot Miss Streak 5 | 1 1 5 3 Penetration Max . | . . . . Secondary Targets 1 | . 1 . . Max Gunslinging Chain 1 | . 1 . . Shots Hit Robots 116 | 4 16 47 49 Core Hits 56 | 3 8 29 16 Critical Kills . | . . . . Critical Parts Destroyed . | . . . . Critical Strikes 1 | . . 1 . Blast 1 | . . 1 . Melee Attacks 3 | . . . 3 Impact . | . . . . Slashing 3 | . . . 3 Piercing . | . . . . Sneak Attacks . | . . . . Combat Hostiles . | . . . . Follow-up Attacks . | . . . . Damage Inflicted 2217 | 49 219 1107 842 Guns 586 | 49 219 46 272 Cannons 1248 | . . 785 463 Explosions 319 | . . 276 43 Melee 64 | . . . 64 Ramming . | . . . . Kinetic 1498 | 11 219 831 437 Thermal 336 | 38 . . 298 Explosive 319 | . . 276 43 Electromagnetic . | . . . . Impact . | . . . . Slashing 64 | . . . 64 Piercing . | . . . . Highest Corruption 4 | . . . 4 Average Corruption 4 | . . . 4 Corruption Purged . | . . . . Corruption Blocked . | . . . . Effects 8 | . . . 8 Message Errors 1 | . . . 1 Matter Fused 1 | . . . 1 Heat Flow Errors 3 | . . . 3 Energy Discharges 1 | . . . 1 Parts Rejected 1 | . . . 1 Data Loss (minor) 1 | . . . 1 Overload Shots . | . . . . Overflow Damage 56 | . . 56 . Projectiles 3 | . . 3 . Explosions 53 | . . 53 . Melee . | . . . . Knockbacks 4 | . . 1 3 Impact . | . . . . Kinetic 4 | . . 1 3 Secondary . | . . . . Self-Inflicted Damage 53 | . . 53 . Shots 1 | . . 1 . Rammed . | . . . . Targets Rammed . | . . . . Kicked . | . . . . Crushed . | . . . . Highest Temperature 475 | 9 13 159 475 Average Temperature 70 | 6 4 39 130 Received Heat Transfer 303 | . 96 81 126 Effects 1 | . . . 1 Shutdowns 1 | . . . 1 Siege Activations . | . . . . Martial Activations . | . . . . Shielding Activations . | . . . . Robots Disrupted . | . . . . Combat Hostiles . | . . . . Robots Corrupted . | . . . . Combat Hostiles . | . . . . Parts Fried . | . . . . Impact Corruptions . | . . . . Robots Melted . | . . . . Combat Hostiles . | . . . . Parts Melted . | . . . . Heat Transferred 629 | 111 . . 518 Parts Sabotaged . | . . . . Parts Stolen . | . . . . Parts Stripped . | . . . . Power Chain Reactions . | . . . . Alert | -11 -10 -9 -8 ------- Run | Yrd Mat Mat Mat Maximum Alert Level 1 | . . 1 . Low Security (%) 94 | 100 100 77 100 Level 1 5 | . . 22 . Level 2 . | . . . . Level 3 . | . . . . Level 4 . | . . . . Level 5 . | . . . . High Security . | . . . . Max Security . | . . . . Peak Influence 303 | 10 40 303 97 Initial 92 | . . . 92 Average 48 | 1 6 142 28 Influence Increases 894 | 15 90 605 184 Destroy 0b10 Robot/C 520 | . 60 360 100 Destroy 0b10 Robot/NC 70 | 15 5 35 15 Destroy Leader 132 | . 12 78 42 Successful Hack 48 | . 13 29 6 Disable Machine 45 | . . 45 . Destroy Structure 64 | . . 43 21 Partial Spotted 15 | . . 15 . Influence Decreases 894 | 15 90 384 405 Entered New Map 129 | . . . 129 Time Decay 515 | 15 90 214 196 Lost Part 100 | . . 20 80 Purge Threat 150 | . . 150 . Squads Dispatched 11 | . 1 2 8 Investigation 2 | . 1 1 . Extermination . | . . . . Reinforcement 6 | . . 1 5 Assault 2 | . . . 2 Garrison 1 | . . . 1 Intercept . | . . . . Searches Triggered . | . . . . Construction Impeded . | . . . . Haulers Reinforced . | . . . . Active Scanning Responses . | . . . . Cargo Convoy Interrupts . | . . . . Stealth | -11 -10 -9 -8 --------- Run | Yrd Mat Mat Mat Distress Signals 6 | . 3 1 2 Communications Jammed . | . . . . Distress Signals . | . . . . Times Spotted 33 | . 5 21 7 Peak Tracking Total 5 | . 3 5 4 Tactical Retreats . | . . . . Traps | -11 -10 -9 -8 ------- Run | Yrd Mat Mat Mat Traps Triggered . | . . . . Indirectly . | . . . . Trap Hack Attempts . | . . . . Triggered . | . . . . Disarmed . | . . . . Reprogrammed . | . . . . Reused . | . . . . Traps Extracted . | . . . . Installed . | . . . . Triggered . | . . . . Machines | -11 -10 -9 -8 ---------- Run | Yrd Mat Mat Mat Machines Disabled 3 | . . 3 . Max in Single Turn 1 | . . 1 . Garrison Access 1 | . . . 1 Machines Repaired . | . . . . Machines Dismantled . | . . . . Machines Sabotaged . | . . . . Overloaded Fab Kills . | . . . . Hacking | -11 -10 -9 -8 --------- Run | Yrd Mat Mat Mat Machines Accessed 17 | . 7 7 3 Terminals 11 | . 5 5 1 Fabricators . | . . . . Repair Stations 2 | . 1 1 . Recycling Units 4 | . 1 1 2 Scanalyzers . | . . . . Garrison Access . | . . . . Total Hacks 43 | . 16 22 5 Successful 30 | . 9 18 3 Failed 13 | . 7 4 2 Catastrophic 2 | . 2 . . Database Lockouts . | . . . . Manual 12 | . 5 5 2 Terminals 30 | . 12 16 2 Fabricators . | . . . . Repair Stations 7 | . 2 5 . Recycling Units 6 | . 2 1 3 Scanalyzers . | . . . . Garrison Access . | . . . . Terminal Hacks 19 | . 5 13 1 Record 3 | . . 3 . Part Schematic 1 | . . 1 . Terminal Index 1 | . . 1 . Scanalyzer Index 1 | . 1 . . Alert Level 2 | . 1 1 . Unreport Threat 1 | . . 1 . Locate Traps 2 | . 1 1 . Dispatch Records 1 | . . 1 . Maintenance Status 1 | . . 1 . Hauler Manifests 4 | . 2 2 . Zone Layout 2 | . . 1 1 Fabricator Hacks . | . . . . Repair Station Hacks 6 | . 2 4 . Scan Component 3 | . 1 2 . Repair 3 | . 1 2 . Recycling Unit Hacks 5 | . 2 1 2 Report Inventory 3 | . 1 1 1 Retrieve Components 2 | . 1 . 1 Scanalyzer . | . . . . Garrison Access Hacks . | . . . . Unauthorized Hacks . | . . . . Terminals . | . . . . Fabricators . | . . . . Repair Stations . | . . . . Recycling Units . | . . . . Scanalyzers . | . . . . Garrison Access . | . . . . Data Cores Recovered 1 | . . 1 . Used 1 | . . 1 . Hacking Detections 12 | . 5 6 1 Full Trace Events 1 | . . 1 . Feedback Events . | . . . . Feedback Blocked . | . . . . Robot Schematics Acquired . | . . . . Robots Built . | . . . . Authchips . | . . . . Time . | . . . . Total Robot Build Rating . | . . . . Part Schematics Acquired 1 | . . 1 . Parts Built . | . . . . Authchips . | . . . . Time . | . . . . Total Part Build Rating . | . . . . Parts Repaired 3 | . 1 2 . Time 102 | . 38 64 . Parts Recycled . | . . . . Recycled Matter . | . . . . Retrieved Matter . | . . . . Retrieved Components 4 | . 2 . 2 Parts Scanalyzed . | . . . . Part Schematics Acquired . | . . . . Parts Damaged . | . . . . Bothacking | -11 -10 -9 -8 ------------ Run | Yrd Mat Mat Mat Used RIF Installer . | . . . . Robots Hacked . | . . . . Non-combat . | . . . . Combat . | . . . . Robot Hacks Applied . | . . . . Relay Couplers Released 3 | . . . 3 Machine Destruction 3 | . . . 3 Fabnet Peak Effective % . | . . . . Robots Rewired . | . . . . Allies Hacked . | . . . . Hacks Repelled . | . . . . Allies | -11 -10 -9 -8 -------- Run | Yrd Mat Mat Mat Total Allies . | . . . . Largest Group . | . . . . Highest-Rated Group . | . . . . Highest-Rated Ally . | . . . . Total Orders . | . . . . Ally Attacks . | . . . . Total Damage . | . . . . Kills . | . . . . Allies Corrupted . | . . . . Allies Melted . | . . . . Intel | -11 -10 -9 -8 ------- Run | Yrd Mat Mat Mat Active Infowar (turns) 1229 | 59 592 453 125 Seismic 1229 | 59 592 453 125 Robot Analysis Total . | . . . . Derelict Logs Recovered . | . . . . Drone Launches . | . . . . Drone Recoveries . | . . . . Exploration | -11 -10 -9 -8 ------------- Run | Yrd Mat Mat Mat Turns Passed 1722 | 113 592 453 564 Spaces Moved 1317 | 85 481 394 357 Core 58 | 3 . . 55 Treads 71 | . . . 71 Legs 13 | . . . 13 Wheels 686 | 82 481 . 123 Hover 489 | . . 394 95 Flight . | . . . . Fastest Speed 50 | 50 100 52 50 Average Speed 84 | 99 100 52 94 Slowest Speed 180 | 100 100 116 180 Overloaded Moves . | . . . . Propulsion Burnouts . | . . . . Robots Hopped . | . . . . Potential Cave-ins 4 | . . 2 2 Cave-ins Triggered 1 | . . . 1 Exploration Rate (%) 37 | 4 74 45 25 Regions Visited 3 Branch Regions . Pre-discovered Areas . | . . . . Known Exits Taken . | . . . . Unknown Exits Taken 3 | 1 1 1 . Scrap Searched . | . . . . Spaces Dug 6 | . . 6 . Terrain Destroyed 73 | . . 47 26 Melee . | . . . . Projectile 9 | . . 6 3 AOE 64 | . . 41 23 Terrain Rammed . | . . . . Walls Destroyed . | . . . . Machines Disabled . | . . . . Actions | -11 -10 -9 -8 --------- Run | Yrd Mat Mat Mat Total 1725 | 102 569 538 516 Wait 174 | . 46 65 63 Move 1314 | 84 480 393 357 Hop . | . . . . Pick Up 39 | 7 12 9 11 Fast Attach 27 | 7 2 4 14 Attach 12 | . . 5 7 Detach 5 | . 1 1 3 Swap 9 | . 3 5 1 Drop 27 | . 12 7 8 Fire 115 | 4 13 49 49 Melee 3 | . . . 3 Ram . | . . . . Kick . | . . . . Crush . | . . . . Escape Stasis . | . . . . Rewire . | . . . . Trap . | . . . . Miscellaneous . | . . . . Route ------- -11/Scrapyard -10/Materials (discovered 4 exits: *Mat / [*Min x2] / [*Sub]) -9/Materials -8/Materials History --------- Turn | Location | Event 14 | -11/Scrapyard | Discovered new exit (range 16) 114 | -11/Scrapyard | Entered Materials 115 | -10/Materials | Met a group of wandering Federalists 287 | -10/Materials | Discovered new exit (range 16) 336 | -10/Materials | Build established: Mutant 456 | -10/Materials | Discovered new exit (range 8) 521 | -10/Materials | Repaired Lgt. Nuclear Core 531 | -10/Materials | Discovered new exit (range 15) 632 | -10/Materials | Discovered new exit (range 8) 706 | -10/Materials | Entered another Materials area 706 | -9/Materials | Evolved 2 slots: Propulsion x1, Utility x1 1005 | -9/Materials | Repaired Hover Unit 1049 | -9/Materials | Repaired Lgt. Nuclear Core 1062 | -9/Materials | Discovered new exit (range 3) 1159 | -9/Materials | Entered another Materials area 1159 | -8/Materials | Evolved 2 slots: Propulsion x1, Weapon x1 1267 | -8/Materials | Garrison activated, responded to threat 1300 | -8/Materials | Crushed by falling debris 1337 | -8/Materials | Lost 12 parts (1p3n3u5w) 1365 | -8/Materials | Core integrity fell below 50% 1395 | -8/Materials | Lost 3 parts (1p1n1w) 1503 | -8/Materials | Met 7R-MNS 1723 | -8/Materials | Self-destructed Last Messages --------------- Dropped Hardlight Generator. Acquired Lgt. Treads. K-01 Serf collects debris. Acquired 45 matter. K-01 Serf collects debris. Acquired 65 matter. Acquired Imp. Heat Sink. Acquired 42 matter. Acquired 30 matter. Acquired 42 matter. Acquired 33 matter. R-06 Scavenger collects Particle Gun. R-06 Scavenger collects Hvy. Laser. R-06 Scavenger collects Particle Gun. System corrupted: Heat flow error (+272). Dropped Hrd. Light Armor Plating. Acquired Imp. Light Armor Plating. R-06 Scavenger collects Hvy. Assault Rifle. R-06 Scavenger collects Lgt. Deuterium Engine. R-06 Scavenger collects Imp. Heat Sink. Map ----- +----------------------------------------------------+ | ????????????### ## # ##?????? | | ??????????###!#####+##### %##+######?????? | | ??????????## !! + % % ##########?? | | ???????????# ![ * # *# ! !! #?? | | ???????????# !* ! # % # ! %##?? | | ???????????# # + !#??? | | ???????????#! "T" # #######+#########??? | | ???????????# """ # #??# ## #?????? | | ???????????######## #??# #????????? | | ??????????????????# #??# #????????? | | ??????????????????# #??# #????????? | | ??????????????????# #??# ! #????????? | | ???????????????####+##+##?# #????????? | | ???????????????# #?########????????? | | ???????????????# #?????????????????? | | ???????????????# #?????????????????? | | ???????????????# #?????????????????? | | ???????????????# #?????????????????? | | ???????????????# #?????????????????? | | ???????????????# #?????????????????? | | ???????????????# #?????????????????? | | ???????????????# #?????????????????? | | ???????????????#####+####?????????????????? | | ?????????########## ####### [[#?????????? | | ?????????# # [[#?????????? | | ?????????# ] """ @ ######??????????????? | | ?????????# """ # #???????????????????? | | ?????????? "" """ # #???????????????????? | | ????????????" ?# #???????????????????? | | ???????????"T """?# #???????????????????? | | ???????????"" ""??+ #???????????????????? | | ???????????"" ""??# #???????????????????? | | ???????????? ???# #???????????????????? | | ??????????????????# #???????????????????? | | ??????????????????# #???????????????????? | | ??????????????????# #???????????????????? | | ??????????????????? #???????????????????? | | ??????????????????? #???????????????????? | | ??????????????????? #???????????????????? | | ??????????????????? ????????????????????? | | ??????????????????????????????????????????? | | ??????????????????????????????????????????? | | ??????????????????????????????????????????? | | ??????????????????????????????????????????? | | ??????????????????????????????????????????? | | ??????????????????????????????????????????? | | ??????????????????????????????????????????? | | ??????????????????????????????????????????? | | ??????????????????????????????????????????? | | ??????????????????????????????????????????? | +----------------------------------------------------+ Best States ------------- Heat Dissipation 55 Energy Generation 14 Energy Capacity 250 Matter Stores 300 Matter Capacity 300 Sight Range 16 Terrain Scan Density 10 Additional Mass Support 9 Armor Coverage 150 Evasion (%) 54 Recoil Reduction 1 Offensive Hacking 10 Item Schematics ----------------- Imp. Hover Unit | -9/Materials | Hacked Robot Schematics ------------------ None Fabricated ------------ Nothing Repaired ---------- Lgt. Nuclear Core | 70% | -10/Materials Hover Unit | 33% | -9/Materials Lgt. Nuclear Core | 64% | -9/Materials Alien Tech Used ----------------- None Achievements -------------- None Challenges ------------ None Game ------ Seed InsulatedTransportStreamer Manual? 0 Play Time 00:44:34 Cumulative 6.2 hours Start 2025.06.27 @ 23:28:51 End 2025.07.19 @ 01:31:36 Sessions 7 Manual Loads 0 Difficulty Rogue Special Mode None Game No. 6 Rogue 6 Adventurer 0 Explorer 0 Win Type - Total 0 Types 0/0/0/0/0/0/0/0/0/0 Lore% 2 Gallery% 8 Achievement% 10 Wizard Run 0 Options --------- Layout 1 ASCII 0 Keyboard 1 Movement Numpad Keybinds 0 Fullscreen 1 Font 32/SmallcapsGlow Map View 50x35 Zoom Use 0% Tactical HUD 0 Map Filters NONE Filters NONE Steam 1 RUN: 75eb457e-1093-4078-b788-1b6de26c8843